fUST/lending_fUST_20251107
["ID","MTS","AMOUNT","RATE_DAILY","PERIOD"]
[393316213,1762459838641,-500.0,0.0001455,2]
[393316214,1762459838651,-500.0,0.0001455,2]
[393316215,1762459838662,-281.10661878,0.0001455,2]
[393316216,1762459838673,-500.0,0.0001455,2]
[393316217,1762459838683,-500.0,0.0001455,2]
[393316218,1762459838694,-500.0,0.0001455,2]
[393316219,1762459838705,-500.0,0.0001455,2]
[393316220,1762459838715,-500.0,0.0001455,2]
[393316221,1762459838726,-500.0,0.0001455,2]
[393316222,1762459838738,-500.0,0.0001455,2]
[393316223,1762459838749,-500.0,0.0001455,2]
[393316224,1762459838761,-2.06440696,0.00014554,2]
[393316225,1762459838772,-3589.34349186,0.00014566,2]
[393316226,1762459838783,-151.0,0.00014608,2]
[393316227,1762459838794,-151.0,0.00014609,2]
[393316228,1762459838805,-151.0,0.00014609,2]
[393316229,1762459838816,-500.0,0.00014609,2]
[393316230,1762459838827,-151.0,0.00014609,2]
[393316231,1762459838838,-151.0,0.00014609,2]
[393316232,1762459838849,-151.0,0.00014609,2]
[393316233,1762459838859,-151.0,0.00014609,2]
[393316234,1762459838869,-151.0,0.00014609,2]
[393316235,1762459838879,-151.0,0.00014609,2]
[393316236,1762459838889,-151.0,0.00014609,2]
[393316237,1762459838899,-198.0,0.00014663,2]
[393316238,1762459838910,-151.0,0.00014664,2]
[393316239,1762459838922,-198.0,0.00014664,2]
[393316240,1762459838933,-500.0,0.00014664,2]
[393316241,1762459838945,-151.0,0.00014664,2]
[393316242,1762459838957,-198.0,0.00014664,2]
[393316243,1762459838969,-198.0,0.00014664,2]
[393316244,1762459838980,-198.0,0.00014664,2]
[393316245,1762459838990,-198.0,0.00014664,2]
[393316246,1762459839002,-198.0,0.00014664,2]
[393316247,1762459839014,-198.0,0.00014664,2]
[393316248,1762459839024,-207.0,0.00014718,2]
[393316249,1762459839034,-500.0,0.00014718,2]
[393316250,1762459839044,-296.0,0.00014718,2]
[393316251,1762459839054,-2696.97559999,0.00014764,2]
[393316252,1762459839067,-165.72188761,0.00014764,2]
[393316253,1762459839077,-500.0,0.00014773,2]
[393316254,1762459839087,-500.0,0.00014828,2]
[393316255,1762459839097,-500.0,0.00014883,2]
[393316256,1762459839108,-367.38342606,0.000149,2]
[393316257,1762459839119,-500.0,0.00014938,2]
[393316258,1762459839129,-1338.99055865,0.00014945,2]
[393316259,1762459839139,-378.12164655,0.00014991,2]
[393316260,1762459839149,-500.0,0.00014992,2]
[393316261,1762459839160,-160.0,0.00015,2]
[393316262,1762459839170,-366.79,0.00015015,2]
[393316263,1762459839180,-500.0,0.00015047,2]
[393316264,1762459839190,-173.627836,0.00015068,2]
[393316265,1762459839200,-190.36688303,0.00015068,2]
[393316266,1762459839221,-500.0,0.00015102,2]
[393316267,1762459839234,-500.0,0.00015157,2]
[393316268,1762459839246,-353.0,0.00015212,2]
[393316269,1762459839257,-301.54640597,0.00015399,2]
[393316270,1762459839269,-412.86149981,0.00015448,2]
[393316271,1762459839280,-500.97712977,0.00015548,2]
[393316272,1762459839292,-500.0,0.00015548,2]
[393316273,1762459839303,-500.0,0.000156,2]
[393316274,1762459839314,-500.0,0.0001563,2]
[393316275,1762459839325,-503.61024689,0.0001563,2]
[393316276,1762459839336,-314.0,0.00015932,2]
[393316277,1762459839347,-420.0,0.00015932,2]
[393316278,1762459839358,-11559.18517725,0.0001599,2]
[393316279,1762459839373,-1498.36216977,0.0001599,2]
[393316280,1762459839384,-1200.0,0.00016005,2]
[393316281,1762459839395,-565.93399839,0.00016256,2]
[393316282,1762459839408,-1000.0,0.00016256,2]
[393316329,1762459840796,-5643.54513707,0.00016256,2]
[393316331,1762459840808,-53579.97821726,0.00016338,2]
[393316333,1762459840819,-24286.88540781,0.00016338,2]
[393316515,1762459843604,-569.8539678,0.00016338,2]
[393316516,1762459843615,-550.3615269,0.00016338,2]
[393316517,1762459843656,-5783.79519527,0.00016338,2]
[393316529,1762459846717,-700.00000077,0.00016338,2]
[393316530,1762459846771,-1242.48199279,0.00016338,2]
[393316531,1762459942782,158.46480561,0.0001445,2]
[393316532,1762460531434,315.60817286,0.00018354,3]
[393316533,1762460536401,1262.43269145,0.00018354,3]
[393316552,1762460957665,838.611227,0.00013699,2]
[393316584,1762461032551,-150.0,0.00014965,2]
[393316586,1762461032561,-396.13676115,0.00015276,2]
[393316588,1762461032571,-72.00156676,0.00015376,2]
[393316591,1762461032605,-87.99843324,0.00015376,2]
[393316593,1762461032616,-404.60103243,0.00015376,2]
[393316595,1762461032627,-595.39896757,0.00015376,2]
[393316597,1762461032637,-309.72907254,0.00016057,2]
[393316599,1762461032649,-508.65546831,0.00016057,2]
[393316649,1762461038445,-298.45902055,0.00016057,2]
[393316692,1762461040832,-234.91749846,0.00016057,2]
[393316694,1762461040841,-300.0,0.00016117,2]
[393316696,1762461040851,-1200.0,0.00016117,2]
[393316698,1762461040861,-381.46384792,0.00016117,2]
[393316700,1762461040871,-625.0,0.00016117,2]
[393316702,1762461040880,-445.4930083,0.00016117,2]
[393316704,1762461040889,-500.0,0.00016117,2]
[393316706,1762461040899,-500.0,0.00016117,2]
[393316708,1762461040908,-500.0,0.00016117,2]
[393316710,1762461040917,-395.41751306,0.00016117,2]
[393316712,1762461040926,-500.0,0.00016117,2]
[393316714,1762461040936,-500.0,0.00016117,2]
[393316716,1762461040946,-422.57367822,0.00016117,2]
[393316718,1762461040955,-1200.0,0.00016118,2]
[393316720,1762461040964,-300.0,0.00016118,2]
[393316722,1762461040973,-300.0,0.00016118,2]
[393316724,1762461040982,-300.0,0.00016118,2]
[393316726,1762461040991,-300.0,0.00016118,2]
[393316728,1762461040999,-29406.18071101,0.00016118,2]
[393316730,1762461041010,-20593.81928899,0.00016118,2]
[393316732,1762461041019,-196.277,0.00016121,2]
[393316734,1762461041028,-8317.8204483,0.00016124,2]
[393316736,1762461041038,-9690.33601485,0.00016238,2]
[393316929,1762461046940,-3539.00129542,0.00016238,2]
[393316930,1762461047266,-505.02073508,0.00016238,2]
[393316946,1762461734129,21899.45,0.00037199,20]
[393316949,1762462042861,809.62931094,0.00013869,2]
[393316950,1762462106876,834.43017161,0.00014453,2]
[393316951,1762462129167,623.21535023,0.00014453,2]
[393316953,1762462225709,834.43017161,0.00013869,2]
[393316972,1762462231740,-150.0,0.00014791,2]
[393316973,1762462231750,-295.0788873,0.00015449,2]
[393316976,1762462231762,-4.9211127,0.00015449,2]
[393316978,1762462231771,-300.0,0.00015449,2]
[393316979,1762462231781,-1200.0,0.00015449,2]
[393316981,1762462231791,-339.69879926,0.0001545,2]
[393316983,1762462231800,-611.45783867,0.0001545,2]
[393316985,1762462231809,-1085.94912148,0.0001545,2]
[393316987,1762462231818,-644.50006723,0.0001545,2]
[393316989,1762462231827,-1160.10012101,0.0001545,2]
[393316991,1762462231836,-2060.33781491,0.0001545,2]
[393316993,1762462231846,-340.79618206,0.0001545,2]
[393316995,1762462231855,-613.43312771,0.0001545,2]
[393316997,1762462231865,-4974.24706926,0.00015956,2]
[393316999,1762462231875,-500.0,0.00016009,2]
[393317001,1762462231884,-500.0,0.00016009,2]
[393317003,1762462231893,-500.0,0.00016009,2]
[393317004,1762462231902,-500.0,0.00016009,2]
[393317006,1762462231911,-500.0,0.00016009,2]
[393317008,1762462231920,-500.0,0.00016009,2]
[393317010,1762462231930,-500.0,0.00016009,2]
[393317012,1762462231939,-500.0,0.00016009,2]
[393317014,1762462231949,-500.0,0.00016009,2]
[393317016,1762462231958,-639.27067421,0.00016009,2]
[393317018,1762462231967,-500.0,0.00016009,2]
[393317020,1762462231976,-500.0,0.00016009,2]
[393317022,1762462231985,-500.0,0.00016009,2]
[393317024,1762462231993,-500.0,0.00016009,2]
[393317026,1762462232002,-500.0,0.00016009,2]
[393317028,1762462232012,-500.0,0.00016009,2]
[393317030,1762462232020,-325.32458995,0.00016009,2]
[393317032,1762462232029,-500.0,0.00016009,2]
[393317033,1762462232038,-500.0,0.00016009,2]
[393317035,1762462232047,-500.0,0.00016009,2]
[393317036,1762462232056,-29.79097207,0.00016009,2]
[393317037,1762462232068,-470.20902793,0.00016009,2]
[393317038,1762462232077,-500.0,0.00016009,2]
[393317039,1762462232085,-500.0,0.00016009,2]
[393317040,1762462232094,-500.0,0.00016009,2]
[393317041,1762462232104,-500.0,0.00016009,2]
[393317042,1762462232113,-500.0,0.00016009,2]
[393317043,1762462232122,-577.25736782,0.00016009,2]
[393317044,1762462232131,-500.0,0.00016009,2]
[393317045,1762462232139,-500.0,0.00016009,2]
[393317046,1762462232148,-500.0,0.00016009,2]
[393317047,1762462232157,-500.0,0.00016009,2]
[393317048,1762462232166,-500.0,0.00016009,2]
[393317049,1762462232176,-500.0,0.00016009,2]
[393317050,1762462232187,-500.0,0.00016009,2]
[393317051,1762462232196,-500.0,0.00016009,2]
[393317052,1762462232205,-500.0,0.00016009,2]
[393317053,1762462232214,-500.0,0.00016009,2]
[393317054,1762462232223,-500.0,0.00016009,2]
[393317055,1762462232232,-11649.33360425,0.00016009,2]
[393317056,1762462232244,-2200.10207672,0.00016009,2]
[393317057,1762462232254,-282.34546992,0.00016009,2]
[393317058,1762462232267,-395.15453008,0.00016009,2]
[393317059,1762462232278,-2377.93724986,0.00016009,2]
[393317060,1762462232290,-23761.34082663,0.00016009,2]
[393317061,1762462232299,-1351.76105986,0.00016056,2]
[393317062,1762462232412,-267.02469354,0.00016109,2]
[393317063,1762462232421,-157.021,0.0001611,2]
[393317064,1762462232431,-1000.0,0.00016128,2]
[393317065,1762462232440,-1000.0,0.00016128,2]
[393317066,1762462232449,-1000.0,0.00016128,2]
[393317067,1762462232458,-1000.0,0.00016128,2]
[393317068,1762462232467,-1000.0,0.00016128,2]
[393317069,1762462232476,-1000.0,0.00016128,2]
[393317070,1762462232485,-1000.0,0.00016128,2]
[393317071,1762462232494,-150.02963805,0.00016128,2]
[393317072,1762462232506,-849.97036195,0.00016128,2]
[393317073,1762462232514,-177.62963805,0.00016128,2]
[393317074,1762462232526,-822.37036195,0.00016128,2]
[393317075,1762462232538,-30.04884604,0.00016128,2]
[393317104,1762462237662,-1089.45723482,0.0001545,2]
[393317105,1762462237671,-969.95115396,0.00016128,2]
[393317107,1762462237681,-1000.0,0.00016128,2]
[393317109,1762462237689,-85.59161122,0.00016128,2]
[393317110,1762462237717,-914.40838878,0.00016128,2]
[393317111,1762462237726,-966.6225507,0.00016128,2]
[393317112,1762462237735,-312.38556082,0.00016138,2]
[393317113,1762462237746,-327.15325798,0.00016138,2]
[393317153,1762462239930,-747.0,0.00016138,2]
[393317160,1762462239984,-498.04,0.00016138,2]
[393317417,1762462246476,-641.0,0.00016138,2]
[393317420,1762462821442,500.0,0.00037195,60]
[393317421,1762462821816,500.0,0.00037195,60]
[393317422,1762462822183,500.0,0.00037195,60]
[393317423,1762462822562,500.0,0.00037195,60]
[393317424,1762462823081,500.0,0.00037195,60]
[393317425,1762462823469,500.0,0.00037195,60]
[393317426,1762462823880,500.0,0.00037195,60]
[393317427,1762462824263,500.0,0.00037195,60]
[393317428,1762462824640,386.681216,0.00037195,60]
[393317429,1762463077603,1249.99,0.00037195,30]
[393317430,1762463077996,1249.99,0.00037195,30]
[393317431,1762463078435,1249.99,0.00037195,30]
[393317432,1762463078763,1249.99,0.00037195,30]
[393317433,1762463079146,1249.99,0.00037195,30]
[393317434,1762463079608,1249.99,0.00037195,30]
[393317435,1762463080001,1249.99,0.00037195,30]
[393317436,1762463080395,1249.99,0.00037195,30]
[393317437,1762463080846,1249.99,0.00037195,30]
[393317438,1762463081233,1249.99,0.00037195,30]
[393317439,1762463081622,1249.99,0.00037195,30]
[393317440,1762463082125,1249.99,0.00037195,30]
[393317441,1762463082381,1249.99,0.00037195,30]
[393317442,1762463082751,1249.99,0.00037195,30]
[393317443,1762463083124,1249.99,0.00037195,30]
[393317444,1762463083522,1249.99,0.00037195,30]
[393317445,1762463083915,1249.99,0.00037195,30]
[393317446,1762463084304,1249.99,0.00037195,30]
[393317447,1762463084685,1249.99,0.00037195,30]
[393317448,1762463085177,1249.99,0.00037195,30]
[393317449,1762463085604,1249.99,0.00037195,30]
[393317450,1762463086022,1249.99,0.00037195,30]
[393317451,1762463086412,1249.99,0.00037195,30]
[393317452,1762463087177,1250.01000004,0.00037195,30]
[393317453,1762463273363,150.0,0.00019712,30]
[393317454,1762463274273,150.0,0.00021504,30]
[393317455,1762463352164,150.0,0.00019713,30]
[393317456,1762463352576,150.0,0.00021505,30]
[393317457,1762463389800,923.15861631,0.000185,3]
[393317474,1762463431971,-1000.0,0.00015044,2]
[393317476,1762463431981,-55.893652,0.00015345,2]
[393317493,1762463437936,-94.106348,0.00015345,2]
[393317494,1762463437946,-1326.22005744,0.00015802,2]
[393317495,1762463437955,-157.022,0.00015815,2]
[393317496,1762463437964,-3104.24336482,0.00015971,2]
[393317498,1762463440055,-828.592002,0.00015971,2]
[393317499,1762463440067,-322.15379707,0.00015971,2]
[393317500,1762463441700,-80.80329846,0.00015971,2]
[393317503,1762463443214,-16.67372327,0.00015971,2]
[393317504,1762463443224,-210.8307854,0.00016029,2]
[393317505,1762463443234,-300.0,0.00016037,2]
[393317506,1762463443243,-300.0,0.00016037,2]
[393317507,1762463443252,-186.91728548,0.00016037,2]
[393317508,1762463443262,-285.4774734,0.00016037,2]
[393317509,1762463443271,-500.0,0.00016037,2]
[393317510,1762463443280,-500.0,0.00016037,2]
[393317511,1762463443289,-286.36192976,0.00016037,2]
[393317512,1762463443299,-57171.01695942,0.00016038,2]
[393317513,1762463443374,-432.11554658,0.00016038,2]
[393319102,1762463717599,815.0495,0.00013699,2]
[393319104,1762463745322,150.0,0.00018988,30]
[393319105,1762463745707,150.0,0.00020714,30]
[393319106,1762463746118,150.0,0.0002244,30]
[393319107,1762463856675,1903.23587718,0.000185,3]
[393319119,1762464283746,150.0,0.00019486,30]
[393319120,1762464284645,150.0,0.00021258,30]
[393319121,1762464285066,150.0,0.00023029,30]
[393319154,1762464338630,500.0,0.00037221,60]
[393319155,1762464339008,500.0,0.00037221,60]
[393319156,1762464339415,199.57367337,0.00037221,60]
[393319191,1762464509194,33699.32075248,0.00032,120]
[393319192,1762464511116,6146.90906999,0.00025,120]
[393319242,1762464632158,-150.0,0.00015781,2]
[393319244,1762464632168,-1326.22005745,0.00015863,2]
[393319246,1762464632177,-1735.22408819,0.00015869,2]
[393319251,1762464632216,-2223.04584457,0.00015869,2]
[393319253,1762464632226,-300.0,0.00015932,2]
[393319255,1762464632235,-250.98878267,0.00015932,2]
[393319257,1762464632244,-302306.73531756,0.00015933,2]
[393319303,1762464638015,-500.0,0.00015932,2]
[393319305,1762464638024,-500.0,0.00015932,2]
[393319307,1762464638034,-500.0,0.00015932,2]
[393319309,1762464638043,-500.0,0.00015932,2]
[393319311,1762464638052,-500.0,0.00015932,2]
[393319313,1762464638062,-500.0,0.00015932,2]
[393319315,1762464638072,-500.0,0.00015932,2]
[393319317,1762464638081,-500.0,0.00015932,2]
[393319319,1762464638090,-10.73359936,0.00015932,2]
[393319322,1762464638102,-489.26640064,0.00015932,2]
[393319324,1762464638111,-500.0,0.00015932,2]
[393319326,1762464638119,-336.56451932,0.00015932,2]
[393319328,1762464638129,-500.0,0.00015932,2]
[393319330,1762464638138,-500.0,0.00015932,2]
[393319332,1762464638147,-500.0,0.00015932,2]
[393319334,1762464638157,-500.0,0.00015932,2]
[393319336,1762464638166,-500.0,0.00015932,2]
[393319338,1762464638175,-500.0,0.00015932,2]
[393319340,1762464638184,-500.0,0.00015932,2]
[393319342,1762464638194,-500.0,0.00015932,2]
[393319344,1762464638203,-500.0,0.00015932,2]
[393319346,1762464638212,-500.0,0.00015932,2]
[393319348,1762464638222,-500.0,0.00015932,2]
[393319349,1762464638231,-500.0,0.00015932,2]
[393319351,1762464638240,-500.0,0.00015932,2]
[393319353,1762464638250,-500.0,0.00015932,2]
[393319355,1762464638260,-500.0,0.00015932,2]
[393319357,1762464638270,-500.0,0.00015932,2]
[393319359,1762464638280,-500.0,0.00015932,2]
[393319361,1762464638289,-500.0,0.00015932,2]
[393319363,1762464638299,-500.0,0.00015932,2]
[393319365,1762464638308,-500.0,0.00015932,2]
[393319366,1762464638318,-500.0,0.00015932,2]
[393319368,1762464638328,-500.0,0.00015932,2]
[393319370,1762464638337,-500.0,0.00015932,2]
[393319372,1762464638346,-500.0,0.00015932,2]
[393319374,1762464638356,-287.73979232,0.00015932,2]
[393319376,1762464638368,-212.26020768,0.00015932,2]
[393319378,1762464638377,-500.0,0.00015932,2]
[393319380,1762464638387,-500.0,0.00015932,2]
[393319382,1762464638396,-500.0,0.00015932,2]
[393319384,1762464638405,-500.0,0.00015932,2]
[393319386,1762464638414,-500.0,0.00015932,2]
[393319388,1762464638424,-500.0,0.00015932,2]
[393319390,1762464638433,-500.0,0.00015932,2]
[393319392,1762464638443,-500.0,0.00015932,2]
[393319394,1762464638452,-500.0,0.00015932,2]
[393319396,1762464638462,-500.0,0.00015932,2]
[393319398,1762464638471,-500.0,0.00015932,2]
[393319400,1762464638480,-500.0,0.00015932,2]
[393319402,1762464638490,-500.0,0.00015932,2]
[393319404,1762464638499,-500.0,0.00015932,2]
[393319405,1762464638509,-500.0,0.00015932,2]
[393319406,1762464638519,-600.0,0.00015932,2]
[393319407,1762464638528,-500.0,0.00015932,2]
[393319408,1762464638538,-549.66337477,0.00015932,2]
[393319409,1762464638549,-500.0,0.00015932,2]
[393319410,1762464638558,-500.0,0.00015932,2]
[393319411,1762464638568,-500.0,0.00015932,2]
[393319412,1762464638578,-500.0,0.00015932,2]
[393319413,1762464638587,-422.46144334,0.00015932,2]
[393319414,1762464638599,-77.53855666,0.00015932,2]
[393319415,1762464638608,-500.0,0.00015932,2]
[393319416,1762464638617,-500.0,0.00015932,2]
[393319417,1762464638626,-7673.29583247,0.00015933,2]
[393319424,1762464640308,-5320.85,0.00015933,2]
[393319425,1762464640366,-12374.38715982,0.00015933,2]
[393319426,1762464640380,-136258.91097111,0.00015933,2]
[393319427,1762464640392,-16139.2,0.00015933,2]
[393319437,1762464643406,-49231.36675677,0.00015933,2]
[393319441,1762464646559,-500.0,0.00015932,2]
[393319442,1762464646568,-500.0,0.00015932,2]
[393319443,1762464646577,-600.0,0.00015932,2]
[393319444,1762464646586,-500.0,0.00015932,2]
[393319445,1762464646595,-500.0,0.00015932,2]
[393319446,1762464646605,-500.0,0.00015932,2]
[393319447,1762464646614,-500.0,0.00015932,2]
[393319448,1762464646715,-500.0,0.00015932,2]
[393319449,1762464646725,-500.0,0.00015932,2]
[393319450,1762464646734,-500.0,0.00015932,2]
[393319451,1762464646743,-500.0,0.00015932,2]
[393319452,1762464646752,-86.40767407,0.00015932,2]
[393319453,1762464646763,-413.59232593,0.00015932,2]
[393319454,1762464646772,-500.0,0.00015932,2]
[393319455,1762464646782,-500.0,0.00015932,2]
[393319456,1762464646791,-31457.92941622,0.00015933,2]
[393319457,1762464646801,-95429.99083911,0.00015933,2]
[393319458,1762464655900,-500.0,0.00015932,2]
[393319459,1762464655909,-500.0,0.00015932,2]
[393319460,1762464655919,-28807.33370694,0.00015933,2]
[393319461,1762464655928,-21805.01518895,0.0001597,2]
[393319462,1762464655939,-5954.00248258,0.00015973,2]
[393319463,1762464655949,-2270.076504,0.00016023,2]
[393319464,1762464655958,-500.0,0.00016033,2]
[393319465,1762464655967,-250.304,0.00016033,2]
[393319466,1762464655976,-201.08703416,0.00016033,2]
[393319467,1762464655986,-151.0,0.00016033,2]
[393319468,1762464655995,-151.0,0.00016033,2]
[393319469,1762464656004,-151.0,0.00016033,2]
[393319470,1762464656015,-151.0,0.00016035,2]
[393319471,1762464656029,-151.0,0.00016035,2]
[393319472,1762464656043,-1048.90500001,0.00016037,2]
[393319473,1762464656057,-417.38941945,0.00016073,2]
[393319474,1762464656070,-500.0,0.00016073,2]
[393319475,1762464656082,-500.0,0.00016088,2]
[393319476,1762464656092,-151.0,0.00016088,2]
[393319477,1762464656106,-151.0,0.00016088,2]
[393319478,1762464656123,-151.0,0.00016088,2]
[393319479,1762464656136,-151.0,0.0001609,2]
[393319480,1762464656149,-151.0,0.0001609,2]
[393319481,1762464656161,-364.64977058,0.00016143,2]
[393319482,1762464656173,-198.0,0.00016145,2]
[393319483,1762464656186,-235.71153375,0.00016145,2]
[393319484,1762464656199,-500.0,0.00016337,2]
[393319485,1762464656211,-277.7007064,0.00016337,2]
[393319486,1762464656222,-500.0,0.00016356,2]
[393319487,1762464656234,-150.0,0.000164,2]
[393319488,1762464656246,-500.33997138,0.00016438,2]
[393319489,1762464656258,-500.0,0.00016438,2]
[393319490,1762464656270,-500.0,0.00016438,2]
[393319491,1762464656283,-500.0,0.00016438,2]
[393319492,1762464656296,-500.0,0.00016438,2]
[393319493,1762464656308,-500.0,0.00016438,2]
[393319494,1762464656318,-500.0,0.00016438,2]
[393319495,1762464656329,-500.0,0.00016438,2]
[393319496,1762464656341,-500.0,0.00016438,2]
[393319497,1762464656352,-500.0,0.00016438,2]
[393319498,1762464656364,-500.0,0.00016438,2]
[393319499,1762464656376,-500.0,0.00016438,2]
[393319500,1762464656389,-500.0,0.00016438,2]
[393319501,1762464656401,-500.0,0.00016438,2]
[393319502,1762464656414,-500.0,0.00016438,2]
[393319503,1762464656427,-404.64459521,0.00016438,2]
[393319504,1762464656440,-500.0,0.00016438,2]
[393319505,1762464656451,-500.0,0.00016438,2]
[393319506,1762464656462,-500.0,0.00016438,2]
[393319507,1762464656472,-500.0,0.00016438,2]
[393319508,1762464656484,-500.0,0.00016438,2]
[393319509,1762464656499,-500.0,0.00016438,2]
[393319510,1762464656513,-500.0,0.00016438,2]
[393319511,1762464656525,-500.0,0.00016438,2]
[393319512,1762464656538,-500.0,0.00016438,2]
[393319513,1762464656549,-500.0,0.00016438,2]
[393319514,1762464656559,-500.0,0.00016438,2]
[393319515,1762464656571,-500.0,0.00016438,2]
[393319516,1762464656583,-500.0,0.00016438,2]
[393319517,1762464656595,-500.0,0.00016438,2]
[393319518,1762464656607,-500.0,0.00016438,2]
[393319519,1762464656617,-500.0,0.00016438,2]
[393319520,1762464656628,-500.0,0.00016438,2]
[393319521,1762464656639,-500.0,0.00016438,2]
[393319522,1762464656649,-500.0,0.00016438,2]
[393319523,1762464656659,-481.15464641,0.00016621,2]
[393319524,1762464656670,-7993.58720488,0.00016741,2]
[393319525,1762464656681,-500.0,0.00016973,2]
[393319526,1762464656691,-500.0,0.00016973,2]
[393319527,1762464656702,-200000.0,0.00016986,2]
[393319528,1762464656713,-420.0,0.0001742,2]
[393319529,1762464656724,-1000.0,0.00017521,2]
[393319530,1762464656735,-228.1614241,0.00017521,2]
[393319531,1762464656746,-177.0,0.00017781,2]
[393319532,1762464656758,-157.022,0.00017807,2]
[393319533,1762464656769,-151.83,0.00017891,2]
[393319534,1762464656779,-321.31801276,0.00018,2]
[393319535,1762464656791,-698.04076493,0.00018267,2]
[393319536,1762464656803,-201.38465441,0.00018443,2]
[393319537,1762464656813,-500.0,0.000193,2]
[393319538,1762464656825,-227.75,0.00019382,2]
[393319539,1762464656837,-500.0,0.00019386,2]
[393319540,1762464656847,-500.0,0.00019386,2]
[393319541,1762464656858,-500.0,0.00019386,2]
[393319542,1762464656869,-985.0,0.00019443,2]
[393319543,1762464656880,-412.0,0.00019443,2]
[393319544,1762464656890,-165.22,0.00019631,2]
[393319545,1762464656900,-151.0,0.00019631,2]
[393319546,1762464656911,-166.0,0.00019631,2]
[393319547,1762464656922,-166.0,0.00019631,2]
[393319548,1762464656932,-172.0,0.00019631,2]
[393319549,1762464656948,-204.0,0.00019781,2]
[393319550,1762464656958,-1009.50037978,0.00019848,2]
[393319551,1762464656969,-473.30979316,0.00019934,2]
[393319552,1762464656980,-1000.0,0.00019934,2]
[393319553,1762464656991,-570.79405327,0.00019934,2]
[393319554,1762464657002,-251.18370161,0.0002,21]
[393319555,1762464657014,-219.0,0.00020117,2]
[393319556,1762464657024,-219.0,0.00020155,2]
[393319557,1762464657035,-815.0495,0.00020187,2]
[393319558,1762464657046,-219.0,0.00020306,2]
[393319559,1762464657056,-219.0,0.00020322,2]
[393319560,1762464657067,-219.0,0.00020412,2]
[393319561,1762464657078,-502.00652876,0.00020482,2]
[393319562,1762464657090,-219.0,0.00020603,2]
[393319563,1762464657102,-219.0,0.00020666,2]
[393319564,1762464657113,-303.67,0.00020873,2]
[393319565,1762464657125,-848.76770091,0.00021,10]
[393319566,1762464657243,-201.58603906,0.00021007,2]
[393319567,1762464657252,-168.0,0.00021516,2]
[393319568,1762464657262,-168.0,0.00021536,2]
[393319569,1762464657271,-219.0,0.00021544,2]
[393319570,1762464657281,-219.0,0.00021578,2]
[393319571,1762464657291,-168.0,0.00021666,2]
[393319572,1762464657304,-219.0,0.00021719,2]
[393319573,1762464657314,-168.0,0.00021767,2]
[393319574,1762464657323,-231.0,0.00021781,2]
[393319575,1762464657335,-153.0,0.00021918,2]
[393319576,1762464657345,-153.0,0.00021918,2]
[393319577,1762464657354,-299.07250437,0.00021918,2]
[393319578,1762464657364,-168.0,0.00021939,2]
[393319579,1762464657373,-168.0,0.00021988,2]
[393319580,1762464657383,-168.0,0.00022044,2]
[393319581,1762464657392,-698.04076493,0.00022073,3]
[393319582,1762464657402,-168.0,0.00022095,2]
[393319583,1762464657413,-390.02,0.000222,7]
[393319584,1762464657422,-168.0,0.00022282,2]
[393319585,1762464657431,-379.59,0.00022364,2]
[393319586,1762464657440,-412.0,0.00022443,2]